fUSD/lending_fUSD_20240804
["ID","MTS","AMOUNT","RATE_DAILY","PERIOD"]
[334136283,1722791450360,-500.0,0.00023013,9]
[334136284,1722791450370,-500.0,0.00023013,9]
[334136285,1722791450380,-500.0,0.00023013,9]
[334136286,1722791450390,-500.0,0.00023013,9]
[334136287,1722791450401,-500.0,0.00023013,9]
[334136288,1722791450411,-500.0,0.00023013,9]
[334136296,1722791450493,-500.0,0.00023013,9]
[334136298,1722791450503,-500.0,0.00023013,9]
[334136299,1722791450513,-500.0,0.00023013,9]
[334136300,1722791450522,-500.0,0.00023013,9]
[334136301,1722791450532,-500.0,0.00023013,9]
[334136302,1722791450541,-500.0,0.00023013,9]
[334136303,1722791450550,-500.0,0.00023013,9]
[334136304,1722791450560,-500.0,0.00023013,9]
[334136305,1722791450569,-500.0,0.00023013,9]
[334136306,1722791450579,-500.0,0.00023013,9]
[334136307,1722791450590,-500.0,0.00023013,9]
[334136308,1722791450599,-500.0,0.00023013,9]
[334136309,1722791450609,-500.0,0.00023013,9]
[334136310,1722791450618,-500.0,0.00023013,9]
[334136311,1722791450627,-518.44,0.00023013,9]
[334136312,1722791450637,-500.0,0.00023013,9]
[334136313,1722791450646,-500.0,0.00023013,9]
[334136314,1722791450654,-500.0,0.00023013,9]
[334136315,1722791450663,-500.0,0.00023013,9]
[334136316,1722791450673,-500.0,0.00023013,9]
[334136317,1722791450682,-797.03,0.00023013,9]
[334136318,1722791450692,-500.0,0.00023013,9]
[334136319,1722791450701,-500.0,0.00023013,9]
[334136320,1722791450710,-500.0,0.00023013,9]
[334136321,1722791450720,-500.0,0.00023013,9]
[334136322,1722791450729,-500.0,0.00023013,9]
[334136323,1722791450739,-500.0,0.00023013,9]
[334136324,1722791450749,-500.0,0.00023013,9]
[334136325,1722791450759,-500.0,0.00023013,9]
[334136326,1722791450768,-500.0,0.00023013,9]
[334136327,1722791450778,-500.0,0.00023013,9]
[334136328,1722791450787,-500.0,0.00023013,9]
[334136329,1722791450796,-500.0,0.00023013,9]
[334136330,1722791450806,-500.0,0.00023013,9]
[334136331,1722791450815,-500.0,0.00023013,9]
[334136332,1722791450825,-500.0,0.00023013,9]
[334136333,1722791450835,-500.0,0.00023013,9]
[334136334,1722791450845,-500.0,0.00023013,9]
[334136335,1722791450855,-500.0,0.00023013,9]
[334136336,1722791450864,-557.12,0.00023013,9]
[334136337,1722791450874,-500.0,0.00023013,9]
[334136338,1722791450885,-500.0,0.00023013,9]
[334136339,1722791450895,-500.0,0.00023013,9]
[334136340,1722791450906,-500.0,0.00023013,9]
[334136341,1722791450915,-500.0,0.00023013,9]
[334136342,1722791450925,-500.0,0.00023013,9]
[334136343,1722791450935,-500.0,0.00023013,9]
[334136344,1722791450944,-500.0,0.00023013,9]
[334136346,1722791450954,-500.0,0.00023013,9]
[334136347,1722791450965,-500.0,0.00023013,9]
[334136348,1722791450976,-507.38,0.00023013,9]
[334136349,1722791450985,-500.0,0.00023013,9]
[334136350,1722791450998,-500.0,0.00023013,9]
[334136351,1722791451009,-500.0,0.00023013,9]
[334136352,1722791451019,-500.0,0.00023013,9]
[334136353,1722791451029,-500.0,0.00023013,9]
[334136354,1722791451040,-500.0,0.00023013,9]
[334136355,1722791451050,-608.12,0.00023013,9]
[334136356,1722791451060,-500.0,0.00023013,9]
[334136357,1722791451071,-816.01,0.00023013,9]
[334136358,1722791451081,-954.13,0.00023013,9]
[334136359,1722791451091,-500.0,0.00023013,9]
[334136360,1722791451100,-500.0,0.00023013,9]
[334136361,1722791451110,-500.0,0.00023013,9]
[334136362,1722791451120,-500.0,0.00023013,9]
[334136363,1722791451130,-500.0,0.00023013,9]
[334136364,1722791451139,-500.0,0.00023013,9]
[334136365,1722791451150,-500.0,0.00023013,9]
[334136366,1722791451160,-547.12168162,0.00023013,9]
[334136367,1722791451169,-500.0,0.00023013,9]
[334136368,1722791451177,-506.73,0.00023013,9]
[334136369,1722791451187,-500.0,0.00023013,9]
[334136370,1722791451196,-500.0,0.00023013,9]
[334136371,1722791451206,-502.54,0.00023013,9]
[334136372,1722791451215,-500.0,0.00023013,9]
[334136373,1722791451224,-500.0,0.00023013,9]
[334136374,1722791451233,-500.0,0.00023013,9]
[334136375,1722791451242,-500.0,0.00023013,9]
[334136376,1722791451252,-500.0,0.00023013,9]
[334136377,1722791451260,-500.0,0.00023013,9]
[334136378,1722791451269,-500.0,0.00023013,9]
[334136379,1722791451279,-500.0,0.00023013,9]
[334136380,1722791451289,-500.0,0.00023013,9]
[334136381,1722791451299,-500.0,0.00023013,9]
[334136382,1722791451310,-500.0,0.00023013,9]
[334136383,1722791451320,-500.0,0.00023013,9]
[334136384,1722791451331,-762.74,0.00023013,9]
[334136385,1722791451341,-636.43,0.00023013,9]
[334136386,1722791451352,-500.0,0.00023013,9]
[334136387,1722791451362,-500.0,0.00023013,9]
[334136388,1722791451372,-574.59,0.00023013,2]
[334136389,1722791451383,-500.0,0.00023013,9]
[334136390,1722791451393,-500.0,0.00023013,9]
[334136391,1722791451404,-1003.36,0.00023013,9]
[334136392,1722791451414,-1003.36,0.00023013,9]
[334136393,1722791451425,-1003.36,0.00023013,9]
[334136394,1722791451435,-500.0,0.00023013,9]
[334136395,1722791451445,-1003.36,0.00023013,9]
[334136396,1722791451456,-1003.36,0.00023013,9]
[334136397,1722791451466,-1139.27,0.00023013,9]
[334136398,1722791451476,-500.0,0.00023013,9]
[334136399,1722791451485,-1057.57,0.00023013,9]
[334136400,1722791451495,-500.0,0.00023013,9]
[334136401,1722791451505,-501.41464898,0.00023013,9]
[334136402,1722791451515,-825.87,0.00023013,9]
[334136403,1722791451526,-500.0,0.00023013,9]
[334136404,1722791451536,-1161.87,0.00023013,9]
[334136405,1722791451546,-500.0,0.00023013,9]
[334136406,1722791451556,-500.0,0.00023013,9]
[334136407,1722791451566,-500.0,0.00023013,9]
[334136408,1722791451576,-500.0,0.00023013,9]
[334136409,1722791451586,-637.66,0.00023013,9]
[334136410,1722791451596,-523.63182769,0.00023013,9]
[334136411,1722791451606,-782.23,0.00023013,9]
[334136412,1722791451616,-510.65,0.00023013,9]
[334136413,1722791451626,-500.0,0.00023013,9]
[334136414,1722791451635,-500.0,0.00023013,9]
[334136415,1722791451645,-500.0,0.00023013,9]
[334136416,1722791451654,-500.0,0.00023013,9]
[334136417,1722791451663,-500.0,0.00023013,9]
[334136418,1722791451672,-500.0,0.00023013,9]
[334136419,1722791451681,-2050.95,0.00023013,9]
[334136420,1722791451690,-500.0,0.00023013,9]
[334136421,1722791451699,-592.76,0.00023013,9]
[334136422,1722791451708,-500.0,0.00023013,9]
[334136423,1722791451718,-500.0,0.00023013,9]
[334136424,1722791451727,-1101.47,0.00023013,9]
[334136425,1722791451736,-500.67242888,0.00023013,9]
[334136426,1722791451746,-1020.41,0.00023013,9]
[334136427,1722791451755,-500.0,0.00023013,9]
[334136428,1722791451765,-769.04,0.00023013,9]
[334136429,1722791451774,-500.0,0.00023013,9]
[334136430,1722791451784,-500.0,0.00023013,9]
[334136431,1722791451794,-500.0,0.00023013,9]
[334136432,1722791451804,-500.0,0.00023013,9]
[334136433,1722791451814,-807.61,0.00023013,9]
[334136434,1722791451823,-500.0,0.00023013,9]
[334136435,1722791451834,-500.0,0.00023013,9]
[334136436,1722791451844,-500.0,0.00023013,9]
[334136437,1722791451854,-500.0,0.00023013,9]
[334136438,1722791451863,-500.0,0.00023013,9]
[334136439,1722791451873,-500.0,0.00023013,9]
[334136440,1722791451883,-500.0,0.00023013,9]
[334136441,1722791451892,-884.84,0.00023013,9]
[334136442,1722791451902,-502.10354315,0.00023013,9]
[334136443,1722791451911,-500.0,0.00023013,9]
[334136444,1722791451921,-500.0,0.00023013,9]
[334136445,1722791451931,-862.81,0.00023013,9]
[334136446,1722791451940,-1357.46,0.00023013,9]
[334136447,1722791451950,-500.0,0.00023013,9]
[334136448,1722791451962,-500.0,0.00023013,9]
[334136449,1722791451972,-500.0,0.00023013,9]
[334136450,1722791451982,-500.0,0.00023013,9]
[334136451,1722791451991,-243.9940792,0.00023013,9]
[334136452,1722791452002,-500.0,0.00023013,7]
[334136453,1722791452012,-500.0,0.00023013,9]
[334136454,1722791452021,-500.0,0.00023013,9]
[334136455,1722791452031,-500.0,0.00023013,9]
[334136456,1722791452041,-4788.71,0.00023013,9]
[334136457,1722791452051,-500.0,0.00023013,9]
[334136458,1722791452061,-500.0,0.00023013,9]
[334136459,1722791452071,-500.0,0.00023013,9]
[334136460,1722791452081,-500.0,0.00023013,9]
[334136461,1722791452090,-1919.04,0.00023013,9]
[334136462,1722791452100,-661.45,0.00023013,9]
[334136463,1722791452109,-693.3,0.00023013,9]
[334136464,1722791452119,-500.0,0.00023013,9]
[334136465,1722791452128,-500.0,0.00023013,9]
[334136466,1722791452140,-500.0,0.00023013,9]
[334136467,1722791452150,-500.0,0.00023013,9]
[334136468,1722791452160,-1546.25,0.00023013,9]
[334136469,1722791452171,-500.0,0.00023013,9]
[334136470,1722791452181,-646.04,0.00023013,9]
[334136471,1722791452191,-500.0,0.00023013,9]
[334136472,1722791452201,-500.0,0.00023013,9]
[334136473,1722791452211,-500.0,0.00023013,9]
[334136474,1722791452221,-500.0,0.00023013,9]
[334136475,1722791452230,-669.22,0.00023013,9]
[334136476,1722791452242,-500.0,0.00023013,9]
[334136477,1722791452252,-500.0,0.00023013,9]
[334136478,1722791452263,-500.0,0.00023013,9]
[334136479,1722791452273,-500.0,0.00023013,9]
[334136480,1722791452283,-559.73,0.00023013,9]
[334136481,1722791452292,-500.0,0.00023013,9]
[334136482,1722791452302,-500.0,0.00023013,9]
[334136483,1722791452312,-4388.85,0.00023013,9]
[334136484,1722791452322,-500.0,0.00023013,9]
[334136485,1722791452333,-500.0,0.00023013,9]
[334136486,1722791452345,-682.77,0.00023013,9]
[334136487,1722791452355,-500.0,0.00023013,9]
[334136488,1722791452365,-500.0,0.00023013,9]
[334136489,1722791452375,-500.0,0.00023013,9]
[334136490,1722791452386,-500.0,0.00023013,9]
[334136491,1722791452396,-1146.2,0.00023013,9]
[334136492,1722791452405,-500.0,0.00023013,9]
[334136493,1722791452415,-500.0,0.00023013,9]
[334136494,1722791452424,-500.0,0.00023013,9]
[334136495,1722791452434,-500.0,0.00023013,9]
[334136496,1722791452446,-500.0,0.00023013,9]
[334136497,1722791452456,-500.0,0.00023013,9]
[334136498,1722791452466,-500.0,0.00023013,9]
[334136499,1722791452476,-500.0,0.00023013,9]
[334136500,1722791452487,-500.0,0.00023013,9]
[334136501,1722791452497,-500.0,0.00023013,9]
[334136502,1722791452506,-500.0,0.00023013,9]
[334136503,1722791452516,-4452.25,0.00023013,9]
[334136504,1722791452526,-500.0,0.00023013,9]
[334136505,1722791452535,-500.0,0.00023013,9]
[334136506,1722791452545,-500.0,0.00023013,9]
[334136507,1722791452554,-500.0,0.00023013,9]
[334136508,1722791452564,-702.16,0.00023013,9]
[334136509,1722791452573,-11663.3,0.00023013,9]
[334136510,1722791452583,-500.0,0.00023013,9]
[334136511,1722791452593,-500.0,0.00023013,9]
[334136512,1722791452603,-500.0,0.00023013,9]
[334136513,1722791452613,-500.0,0.00023013,9]
[334136514,1722791452623,-500.0,0.00023013,9]
[334136515,1722791452632,-500.0,0.00023013,9]
[334136516,1722791452642,-3319.68,0.00023013,9]
[334136517,1722791452651,-2876.35,0.00023013,9]
[334136518,1722791452660,-500.0,0.00023013,9]
[334136519,1722791452671,-500.0,0.00023013,9]
[334136520,1722791452680,-877.54,0.00023013,9]
[334136521,1722791452690,-2931.14,0.00023013,9]
[334136522,1722791452699,-500.0,0.00023013,9]
[334136523,1722791452708,-500.0,0.00023013,9]
[334136524,1722791452717,-500.0,0.00023013,9]
[334136525,1722791452727,-500.0,0.00023013,9]
[334136526,1722791452736,-500.0,0.00023013,9]
[334136527,1722791452745,-500.0,0.00023013,9]
[334136528,1722791452755,-500.0,0.00023013,9]
[334136529,1722791452764,-500.0,0.00023013,9]
[334136530,1722791452774,-1374.95,0.00023013,9]
[334136531,1722791452783,-792.65,0.00023013,9]
[334136532,1722791452792,-500.0,0.00023013,9]
[334136533,1722791452802,-500.0,0.00023013,9]
[334136534,1722791452811,-500.0,0.00023013,9]
[334136535,1722791452820,-500.0,0.00023013,9]
[334136536,1722791452829,-712.61,0.00023013,9]
[334136537,1722791452839,-500.0,0.00023013,9]
[334136538,1722791452854,-500.0,0.00023013,9]
[334136539,1722791452863,-5580.38,0.00023013,9]
[334136540,1722791452873,-504.08717039,0.00023013,9]
[334136541,1722791452882,-500.0,0.00023013,9]
[334136542,1722791452892,-500.0,0.00023013,9]
[334136543,1722791452901,-704.37,0.00023013,9]
[334136544,1722791452911,-500.0,0.00023013,9]
[334136545,1722791452920,-1117.25,0.00023013,9]
[334136546,1722791452929,-500.0,0.00023013,9]
[334136547,1722791452938,-1654.59,0.00023013,9]
[334136548,1722791452947,-294.17263592,0.00023013,9]
[334136549,1722791452957,-500.0,0.00023013,9]
[334136550,1722791452968,-5727.9,0.00023013,9]
[334136551,1722791452978,-500.0,0.00023013,9]
[334136552,1722791452989,-500.0,0.00023013,9]
[334136553,1722791453000,-901.95,0.00023013,9]
[334136554,1722791453013,-501.77,0.00023013,9]
[334136555,1722791453025,-746.28,0.00023013,9]
[334136556,1722791453051,-500.0,0.00023013,9]
[334136557,1722791453064,-500.0,0.00023013,9]
[334136558,1722791453077,-500.0,0.00023013,9]
[334136559,1722791453088,-1125.06,0.00023013,9]
[334136560,1722791453099,-500.0,0.00023013,9]
[334136561,1722791453110,-500.0,0.00023013,9]
[334136562,1722791453121,-500.0,0.00023013,9]
[334136563,1722791453132,-673.29,0.00023013,9]
[334136564,1722791453144,-854.74,0.00023013,9]
[334136565,1722791453155,-500.0,0.00023013,9]
[334136566,1722791453166,-500.0,0.00023013,9]
[334136567,1722791453177,-843.22,0.00023013,9]
[334136568,1722791453188,-500.0,0.00023013,9]
[334136569,1722791453198,-500.0,0.00023013,9]
[334136570,1722791453209,-500.0,0.00023013,9]
[334136571,1722791453220,-500.0,0.00023013,9]
[334136572,1722791453230,-1935.07,0.00023013,9]
[334136573,1722791453241,-500.0,0.00023013,9]
[334136574,1722791453251,-500.0,0.00023013,9]
[334136575,1722791453262,-500.0,0.00023013,9]
[334136576,1722791453272,-500.0,0.00023013,9]
[334136577,1722791453283,-500.0,0.00023013,9]
[334136578,1722791453293,-500.0,0.00023013,9]
[334136579,1722791453303,-500.0,0.00023013,9]
[334136580,1722791453314,-500.0,0.00023013,9]
[334136581,1722791453324,-500.0,0.00023013,9]
[334136582,1722791453335,-500.0,0.00023013,9]
[334136583,1722791453346,-500.0,0.00023013,9]
[334136584,1722791453358,-500.0,0.00023013,9]
[334136585,1722791453369,-1301.59,0.00023013,9]
[334136586,1722791453380,-551.57,0.00023013,9]
[334136587,1722791453392,-500.0,0.00023013,9]
[334136588,1722791453404,-500.0,0.00023013,9]
[334136589,1722791453415,-500.0,0.00023013,9]
[334136590,1722791453426,-838.02,0.00023013,9]
[334136591,1722791453438,-500.0,0.00023013,9]
[334136592,1722791453450,-1069.55,0.00023013,9]
[334136593,1722791453462,-1154.74,0.00023013,9]
[334136594,1722791453473,-1100.62,0.00023013,9]
[334136595,1722791453483,-2133.48,0.00023013,9]
[334136596,1722791453493,-523.65,0.00023013,9]
[334136597,1722791453504,-500.0,0.00023013,9]
[334136598,1722791453515,-500.0,0.00023013,9]
[334136599,1722791453524,-587.47,0.00023013,9]
[334136600,1722791453534,-917.8,0.00023013,9]
[334136601,1722791453544,-221.543591,0.00023013,9]
[334136602,1722791453554,-899.41,0.00023013,9]
[334136603,1722791453586,-500.0,0.00023013,9]
[334136604,1722791453596,-500.0,0.00023013,9]
[334136605,1722791453607,-500.0,0.00023013,9]
[334136606,1722791453617,-500.0,0.00023013,9]
[334136607,1722791453628,-501.7,0.00023013,9]
[334136608,1722791453638,-1233.11,0.00023013,9]
[334136609,1722791453648,-2617.3,0.00023013,9]
[334136610,1722791453658,-2583.3,0.00023013,9]
[334136611,1722791453669,-500.0,0.00023013,9]
[334136612,1722791453680,-886.15,0.00023013,9]
[334136613,1722791453691,-501.87506081,0.00023013,9]
[334136614,1722791453702,-525.28,0.00023013,9]
[334136615,1722791453713,-500.0,0.00023013,9]
[334136616,1722791453723,-500.0,0.00023013,9]
[334136617,1722791453734,-500.0,0.00023013,9]
[334136618,1722791453745,-913.12,0.00023013,9]
[334136619,1722791453756,-520.5,0.00023013,9]
[334136620,1722791453767,-500.0,0.00023013,9]
[334136621,1722791453778,-537.2,0.00023013,9]
[334136622,1722791453788,-617.1401933,0.00023013,9]
[334136623,1722791453798,-1178.26,0.00023013,9]
[334136624,1722791453809,-614.9219585,0.00023013,9]
[334136625,1722791453819,-500.0,0.00023013,9]
[334136626,1722791453830,-500.0,0.00023013,9]
[334136627,1722791453841,-944.99,0.00023013,9]
[334136628,1722791453851,-7270.03,0.00023013,9]
[334136629,1722791453863,-500.0,0.00023013,9]
[334136630,1722791453873,-500.0,0.00023013,9]
[334136631,1722791453884,-500.0,0.00023013,9]
[334136632,1722791453895,-500.0,0.00023013,9]
[334136633,1722791453905,-500.0,0.00023013,9]
[334136634,1722791453915,-500.0,0.00023013,9]
[334136635,1722791453925,-500.0,0.00023013,9]
[334136636,1722791453935,-500.0,0.00023013,9]
[334136637,1722791453945,-500.0,0.00023013,9]
[334136638,1722791453955,-500.0,0.00023013,9]
[334136639,1722791453970,-500.0,0.00023013,9]
[334136640,1722791453981,-500.0,0.00023013,9]
[334136641,1722791453991,-500.0,0.00023013,9]
[334136642,1722791454000,-500.0,0.00023013,9]
[334136643,1722791454013,-500.0,0.00023013,9]
[334136644,1722791454022,-735.64,0.00023013,9]
[334136645,1722791454032,-501.24028086,0.00023013,9]
[334136646,1722791454042,-500.0,0.00023013,9]
[334136647,1722791454053,-500.0,0.00023013,9]
[334136648,1722791454063,-1047.4,0.00023013,9]
[334136649,1722791454089,-500.0,0.00023013,9]
[334136650,1722791454099,-1300.15,0.00023013,9]
[334136651,1722791454109,-989.22,0.00023013,9]
[334136652,1722791454118,-500.0,0.00023013,9]
[334136653,1722791454127,-501.45769202,0.00023013,9]
[334136654,1722791454137,-500.0,0.00023013,9]
[334136655,1722791454146,-500.0,0.00023013,9]
[334136656,1722791454156,-500.0,0.00023013,9]
[334136657,1722791454166,-631.0896295,0.00023013,9]
[334136658,1722791454177,-656.27,0.00023013,9]
[334136659,1722791454190,-500.0,0.00023013,9]
[334136660,1722791454200,-500.0,0.00023013,9]
[334136661,1722791454210,-500.0,0.00023013,9]
[334136662,1722791454220,-500.0,0.00023013,9]
[334136663,1722791454230,-1078.94,0.00023013,9]
[334136664,1722791454240,-953.56,0.00023013,9]
[334136665,1722791454251,-500.0,0.00023013,9]
[334136666,1722791454261,-649.2,0.00023013,9]
[334136667,1722791454271,-500.0,0.00023013,9]
[334136668,1722791454281,-864.12,0.00023013,9]
[334136669,1722791454290,-1237.78,0.00023013,9]
[334136670,1722791454300,-760.31,0.00023013,9]
[334136671,1722791454310,-500.0,0.00023013,9]
[334136672,1722791454320,-789.24,0.00023013,9]
[334136673,1722791454331,-500.0,0.00023013,9]
[334136674,1722791454341,-529.56,0.00023013,9]
[334136675,1722791454352,-500.0,0.00023013,9]
[334136676,1722791454363,-500.0,0.00023013,9]
[334136677,1722791454374,-500.0,0.00023013,9]
[334136678,1722791454386,-500.0,0.00023013,9]
[334136679,1722791454397,-539.15,0.00023013,9]
[334136680,1722791454408,-1359.43,0.00023013,9]
[334136681,1722791454419,-304.58,0.00023013,9]
[334136682,1722791454429,-500.0,0.00023013,9]
[334136683,1722791454441,-500.0,0.00023013,9]
[334136684,1722791454453,-1103.24,0.00023013,9]
[334136685,1722791454465,-500.0,0.00023013,9]
[334136686,1722791454477,-500.0,0.00023013,9]
[334136687,1722791454488,-500.0,0.00023013,9]
[334136688,1722791454501,-1161.4,0.00023013,9]
[334136689,1722791454512,-500.0,0.00023013,9]
[334136690,1722791454524,-500.0,0.00023013,9]
[334136691,1722791454536,-863.45,0.00023013,9]
[334136692,1722791454547,-500.0,0.00023013,9]
[334136693,1722791454557,-500.0,0.00023013,9]
[334136694,1722791454568,-559.1,0.00023013,9]
[334136695,1722791454599,-619.07,0.00023013,9]
[334136696,1722791454610,-1946.82,0.00023013,9]
[334136697,1722791454622,-500.0,0.00023013,9]
[334136698,1722791454633,-1142.55,0.00023013,9]
[334136699,1722791454643,-500.0,0.00023013,9]
[334136700,1722791454654,-500.0,0.00023013,9]
[334136701,1722791454665,-652.17,0.00023013,9]
[334136702,1722791454675,-827.65,0.00023013,9]
[334136703,1722791454685,-812.25,0.00023013,9]
[334136704,1722791454697,-964.54,0.00023013,9]
[334136705,1722791454708,-500.0,0.00023013,9]
[334136706,1722791454718,-1073.57,0.00023013,9]
[334136707,1722791454728,-500.0,0.00023013,9]
[334136708,1722791454739,-500.0,0.00023013,9]
[334136709,1722791454750,-500.0,0.00023013,9]
[334136710,1722791454761,-693.77,0.00023013,9]
[334136711,1722791454773,-500.0,0.00023013,9]
[334136712,1722791454784,-500.0,0.00023013,9]
[334136713,1722791454795,-1068.06,0.00023013,9]
[334136714,1722791454807,-2369.34,0.00023013,9]
[334136715,1722791454818,-500.0,0.00023013,9]
[334136716,1722791454828,-1249.33,0.00023013,9]
[334136717,1722791454838,-500.0,0.00023013,9]
[334136718,1722791454849,-500.0,0.00023013,9]
[334136719,1722791454859,-362.14038369,0.00023013,9]
[334136720,1722791454870,-3424.97,0.00023013,9]
[334136721,1722791454881,-500.0,0.00023013,9]
[334136722,1722791454892,-500.0,0.00023013,9]
[334136723,1722791455019,-708.76,0.00023013,9]
[334136724,1722791455042,-500.0,0.00023013,9]
[334136725,1722791455055,-500.0,0.00023013,9]
[334136726,1722791455067,-1592.65,0.00023013,9]
[334136727,1722791455078,-1592.65,0.00023013,9]
[334136728,1722791455089,-1592.65,0.00023013,9]
[334136729,1722791455101,-1592.65,0.00023013,9]
[334136730,1722791455120,-500.0,0.00023013,9]
[334136731,1722791455137,-1592.65,0.00023013,9]
[334136732,1722791455147,-500.0,0.00023013,9]
[334136733,1722791455157,-730.94,0.00023013,9]
[334136734,1722791455168,-706.92,0.00023013,9]
[334136735,1722791455178,-500.0,0.00023013,9]
[334136736,1722791455188,-930.1,0.00023013,9]
[334136737,1722791455198,-500.0,0.00023013,2]
[334136738,1722791455210,-500.0,0.00023013,9]
[334136739,1722791455220,-1185.29,0.00023013,9]
[334136740,1722791455230,-500.0,0.00023013,9]
[334136741,1722791455241,-500.0,0.00023013,9]
[334136742,1722791455251,-500.0,0.00023013,9]
[334136743,1722791455261,-500.0,0.00023013,9]
[334136744,1722791455272,-749.72,0.00023013,9]
[334136745,1722791455281,-500.0,0.00023013,9]
[334136746,1722791455291,-500.0,0.00023013,9]
[334136747,1722791455301,-500.0,0.00023013,9]
[334136748,1722791455311,-500.0,0.00023013,9]
[334136749,1722791455320,-500.0,0.00023013,9]
[334136750,1722791455329,-500.0,0.00023013,9]
[334136751,1722791455339,-982.34,0.00023013,9]
[334136752,1722791455348,-500.0,0.00023013,9]
[334136753,1722791455358,-2359.14,0.00023013,9]
[334136754,1722791455367,-500.0,0.00023013,9]
[334136755,1722791455378,-500.0,0.00023013,9]
[334136756,1722791455389,-481.93,0.00023013,9]
[334136757,1722791455399,-1517.05,0.00023013,9]
[334136758,1722791455409,-1222.96,0.00023013,9]
[334136759,1722791455419,-500.0,0.00023013,9]
[334136760,1722791455429,-500.0,0.00023013,9]
[334136761,1722791455439,-500.0,0.00023013,9]
[334136762,1722791455449,-500.0,0.00023013,9]
[334136763,1722791455459,-1154.03,0.00023013,9]
[334136764,1722791455469,-500.0,0.00023013,9]
[334136765,1722791455479,-500.0,0.00023013,9]
[334136766,1722791455489,-419.27921,0.00023013,2]
[334136767,1722791455499,-678.32,0.00023013,9]
[334136768,1722791455510,-500.0,0.00023013,9]
[334136769,1722791455521,-500.0,0.00023013,9]
[334136770,1722791455531,-837.76,0.00023013,9]
[334136771,1722791455541,-551.35,0.00023013,9]
[334136772,1722791455551,-500.0,0.00023013,9]
[334136773,1722791455560,-901.47,0.00023013,9]
[334136774,1722791455571,-1602.16,0.00023013,9]
[334136775,1722791455580,-500.0,0.00023013,9]
[334136776,1722791455590,-892.45,0.00023013,9]
[334136777,1722791455601,-1000.0,0.00023013,9]
[334136778,1722791455610,-723.23,0.00023013,9]
[334136779,1722791455628,-887.76,0.00023013,9]
[334136780,1722791455647,-500.0,0.00023013,9]
[334136781,1722791455657,-500.0,0.00023013,9]
[334136782,1722791455667,-500.0,0.00023013,9]
[334136783,1722791455678,-500.0,0.00023013,2]
[334136784,1722791455688,-912.64,0.00023013,9]
[334136785,1722791455698,-2080.92,0.00023013,9]
[334136786,1722791455707,-500.0,0.00023013,9]
[334136787,1722791455718,-500.0,0.00023013,9]
[334136788,1722791455728,-500.0,0.00023013,9]
[334136789,1722791455738,-500.0,0.00023013,9]
[334136790,1722791455747,-1436.39,0.00023013,9]
[334136791,1722791455757,-1119.35,0.00023013,9]